fUST/lending_fUST_20250929
["ID","MTS","AMOUNT","RATE_DAILY","PERIOD"]
[388390350,1759150240769,-521.3,0.0002568,2]
[388390351,1759150240778,-480.0,0.0002568,2]
[388390352,1759150240787,-784.66,0.0002568,2]
[388390353,1759150240796,-500.0,0.0002568,2]
[388390354,1759150240807,-480.0,0.0002568,2]
[388390355,1759150240817,-924.02,0.0002568,2]
[388390356,1759150240826,-949.45,0.0002568,2]
[388390357,1759150240837,-500.0,0.0002568,2]
[388390358,1759150240846,-480.0,0.0002568,2]
[388390359,1759150240855,-707.6,0.0002568,2]
[388390360,1759150240864,-707.59,0.0002568,2]
[388390361,1759150240873,-1418.9,0.0002568,2]
[388390362,1759150240882,-480.0,0.0002568,2]
[388390363,1759150240891,-1964.34,0.0002568,2]
[388390364,1759150240900,-1411.73,0.0002568,2]
[388390365,1759150240909,-1396.83,0.0002568,2]
[388390366,1759150240919,-732.18,0.0002568,2]
[388390367,1759150240928,-504.19,0.0002568,2]
[388390368,1759150240936,-1024.59,0.0002568,2]
[388390369,1759150240946,-480.0,0.0002568,2]
[388390370,1759150240955,-656.68,0.0002568,2]
[388390371,1759150240963,-1809.48,0.0002568,2]
[388390372,1759150240973,-169.63260729,0.0002568,2]
[388390373,1759150240981,-774.91,0.0002568,2]
[388390374,1759150240990,-828.53,0.0002568,2]
[388390375,1759150240999,-510.1,0.0002568,2]
[388390376,1759150241008,-659.1,0.0002568,2]
[388390377,1759150241017,-480.0,0.0002568,2]
[388390378,1759150241026,-1098.11,0.0002568,2]
[388390379,1759150241035,-778.35,0.0002568,2]
[388390380,1759150241043,-480.0,0.0002568,2]
[388390381,1759150241052,-797.89,0.0002568,2]
[388390382,1759150241061,-1270.88,0.0002568,2]
[388390383,1759150241071,-929.07,0.0002568,2]
[388390384,1759150241079,-480.0,0.0002568,2]
[388390385,1759150241088,-480.0,0.0002568,2]
[388390386,1759150241098,-540.16,0.0002568,2]
[388390387,1759150241107,-3713.02,0.0002568,2]
[388390388,1759150241116,-480.0,0.0002568,2]
[388390389,1759150241125,-932.81,0.0002568,2]
[388390390,1759150241134,-950.95,0.0002568,2]
[388390391,1759150241144,-1172.12,0.0002568,2]
[388390392,1759150241153,-480.0,0.0002568,2]
[388390393,1759150241162,-585.42,0.0002568,2]
[388390394,1759150241171,-480.0,0.0002568,2]
[388390395,1759150241179,-387.58425131,0.0002568,2]
[388390396,1759150241188,-480.0,0.0002568,2]
[388390397,1759150241197,-480.0,0.0002568,2]
[388390398,1759150241207,-480.0,0.0002568,2]
[388390399,1759150241216,-214.15505099,0.0002568,2]
[388390400,1759150241225,-792.67,0.0002568,2]
[388390401,1759150241234,-1234.14,0.0002568,2]
[388390402,1759150241244,-775.61,0.0002568,2]
[388390403,1759150241253,-480.0,0.0002568,2]
[388390404,1759150241263,-480.0,0.0002568,2]
[388390405,1759150241274,-909.37,0.0002568,2]
[388390406,1759150241283,-480.0,0.0002568,2]
[388390407,1759150241292,-480.0,0.0002568,2]
[388390408,1759150241301,-480.0,0.0002568,2]
[388390409,1759150241311,-480.0,0.0002568,2]
[388390410,1759150241320,-1469.56,0.0002568,2]
[388390411,1759150241330,-480.0,0.0002568,2]
[388390412,1759150241339,-3192.27,0.0002568,2]
[388390413,1759150241348,-480.0,0.0002568,2]
[388390414,1759150241358,-480.0,0.0002568,2]
[388390415,1759150241367,-494.51857176,0.0002568,2]
[388390416,1759150241376,-480.0,0.0002568,2]
[388390417,1759150241385,-480.0,0.0002568,2]
[388390418,1759150241394,-617.63068873,0.0002568,2]
[388390419,1759150241404,-2486.05,0.0002568,2]
[388390420,1759150241413,-687.0,0.0002568,2]
[388390421,1759150241422,-1059.13,0.0002568,2]
[388390422,1759150241432,-1559.73,0.0002568,2]
[388390423,1759150241441,-480.0,0.0002568,2]
[388390424,1759150241452,-480.0,0.0002568,2]
[388390425,1759150241462,-480.0,0.0002568,2]
[388390426,1759150241471,-1927.29,0.0002568,2]
[388390427,1759150241480,-1454.56,0.0002568,2]
[388390428,1759150241490,-480.0,0.0002568,2]
[388390429,1759150241499,-1718.85,0.0002568,2]
[388390430,1759150241508,-480.0,0.0002568,2]
[388390431,1759150241517,-1065.13,0.0002568,2]
[388390432,1759150241526,-1123.64,0.0002568,2]
[388390433,1759150241536,-7503.39,0.0002568,2]
[388390434,1759150241545,-480.0,0.0002568,2]
[388390435,1759150241555,-480.0,0.0002568,2]
[388390436,1759150241565,-502.9,0.0002568,2]
[388390437,1759150241575,-3483.34,0.0002568,2]
[388390438,1759150241584,-480.0,0.0002568,2]
[388390439,1759150241593,-548.87,0.0002568,2]
[388390440,1759150241603,-680.75,0.0002568,2]
[388390441,1759150241612,-480.0,0.0002568,2]
[388390442,1759150241622,-4795.56,0.0002568,2]
[388390443,1759150241631,-841.09,0.0002568,2]
[388390444,1759150241641,-1794.83,0.0002568,2]
[388390445,1759150241651,-480.0,0.0002568,2]
[388390446,1759150241660,-480.0,0.0002568,2]
[388390447,1759150241669,-482.03596892,0.0002568,2]
[388390448,1759150241679,-838.86,0.0002568,2]
[388390449,1759150241688,-7825.11,0.0002568,2]
[388390450,1759150241699,-707.29,0.0002568,2]
[388390451,1759150241708,-480.0,0.0002568,2]
[388390452,1759150241718,-480.0,0.0002568,2]
[388390453,1759150241727,-1488.78,0.0002568,2]
[388390454,1759150241736,-480.0,0.0002568,2]
[388390455,1759150241746,-835.78,0.0002568,2]
[388390456,1759150241755,-1020.2,0.0002568,2]
[388390457,1759150241769,-480.0,0.0002568,2]
[388390458,1759150241778,-294.55497568,0.0002568,2]
[388390459,1759150241787,-4319.77,0.0002568,2]
[388390460,1759150241796,-859.99,0.0002568,2]
[388390461,1759150241806,-1701.98,0.0002568,2]
[388390462,1759150241815,-1094.94,0.0002568,2]
[388390463,1759150241824,-480.0,0.0002568,2]
[388390464,1759150241834,-480.0,0.0002568,2]
[388390465,1759150241843,-719.25,0.0002568,2]
[388390466,1759150241853,-1222.33,0.0002568,2]
[388390467,1759150241863,-480.0,0.0002568,2]
[388390468,1759150241873,-1048.62,0.0002568,2]
[388390469,1759150241882,-480.0,0.0002568,2]
[388390470,1759150241892,-6952.29,0.0002568,2]
[388390471,1759150241902,-3227.38,0.0002568,2]
[388390472,1759150241912,-1040.83,0.0002568,2]
[388390473,1759150241921,-403.37011725,0.0002568,2]
[388390474,1759150241931,-568.8,0.0002568,2]
[388390475,1759150241941,-2028.75,0.0002568,2]
[388390476,1759150241951,-480.0,0.0002568,2]
[388390477,1759150241962,-3517.83,0.0002568,2]
[388390478,1759150241972,-304.02810323,0.0002568,2]
[388390479,1759150241981,-18877.7109895,0.00025681,2]
[388390480,1759150241991,-151.0,0.00025778,2]
[388390481,1759150242001,-160.0,0.00025837,4]
[388390482,1759150242010,-616.25763511,0.0002585,2]
[388390483,1759150242020,-500.0,0.0002585,2]
[388390484,1759150242030,-500.25623088,0.0002585,2]
[388390485,1759150242039,-507.22562962,0.0002585,2]
[388390486,1759150242048,-502.71229656,0.0002585,2]
[388390487,1759150242058,-500.0,0.0002585,2]
[388390488,1759150242068,-168.0,0.00025925,2]
[388390489,1759150242076,-19228.9851965,0.00025933,2]
[388390490,1759150242086,-215.9438815,0.00025933,2]
[388390491,1759150242095,-9961.52129384,0.00025934,2]
[388390562,1759150242947,-480.0,0.00025668,2]
[388390564,1759150242957,-166.66,0.0002568,2]
[388390565,1759150242965,-480.0,0.0002568,2]
[388390567,1759150242975,-1931.8060296,0.00025934,2]
[388390570,1759150242987,-7335.65787306,0.00025934,2]
[388390572,1759150242996,-215.9438815,0.00025934,2]
[388390574,1759150243008,-480.0,0.00025942,2]
[388390576,1759150243017,-753.87,0.00025942,2]
[388390578,1759150243026,-400.0,0.00025942,2]
[388390580,1759150243035,-953.48,0.00025942,2]
[388390582,1759150243045,-1271.32,0.00025942,2]
[388390584,1759150243054,-1497.38246304,0.00025942,2]
[388390614,1759150243789,-240.576327,0.00025681,7]
[388390616,1759150243800,-9.56753696,0.00025942,2]
[388390618,1759150243811,-2109.67,0.00025942,2]
[388390620,1759150243821,-590.58,0.00025942,2]
[388390621,1759150243831,-480.0,0.00025942,2]
[388390622,1759150243841,-7765.87,0.00025942,2]
[388390623,1759150243852,-480.0,0.00025942,2]
[388390624,1759150243861,-4492.27,0.00025942,2]
[388390625,1759150243870,-480.0,0.00025942,2]
[388390626,1759150243880,-888.1,0.00025942,2]
[388390627,1759150243890,-480.0,0.00025942,2]
[388390628,1759150243903,-745.8,0.00025942,2]
[388390629,1759150243913,-1974.38838289,0.00025942,2]
[388390657,1759150246201,-1332.17243669,0.00025568,2]
[388390658,1759150246210,-523.63,0.00025669,2]
[388390659,1759150246219,-2427.74,0.00025679,2]
[388390660,1759150246229,-480.0,0.00025679,2]
[388390661,1759150246238,-143.43220423,0.0002568,2]
[388390662,1759150246249,-336.56779577,0.0002568,2]
[388390663,1759150246259,-498.66268909,0.0002568,2]
[388390664,1759150246268,-240.576327,0.00025681,7]
[388390665,1759150246279,-240.576327,0.00025681,7]
[388390666,1759150246289,-240.576327,0.00025681,7]
[388390667,1759150246299,-382.49053415,0.00025942,2]
[388390668,1759150246311,-267.65108296,0.00025942,2]
[388390669,1759150246322,-7734.72,0.00025942,2]
[388390670,1759150246331,-827.24,0.00025942,2]
[388390671,1759150246341,-2001.5,0.00025942,2]
[388390672,1759150246350,-1112.69,0.00025942,2]
[388390673,1759150246360,-946.63,0.00025942,2]
[388390674,1759150246369,-480.0,0.00025942,2]
[388390675,1759150246379,-771.23,0.00025942,2]
[388390676,1759150246389,-901.30767693,0.00025943,2]
[388390677,1759150246401,-17534.36614958,0.00025943,2]
[388390678,1759150246412,-793.31136999,0.00025943,2]
[388390679,1759150246422,-215.9438815,0.00025943,2]
[388390680,1759150246431,-480.0,0.00025943,2]
[388390681,1759150246441,-589.3,0.00025943,2]
[388390682,1759150246451,-480.0,0.00025943,2]
[388390683,1759150246461,-480.0,0.00025943,2]
[388390684,1759150246470,-261.74564355,0.00025943,2]
[388390685,1759150246481,-480.0,0.00025943,2]
[388390686,1759150246490,-480.0,0.00025943,2]
[388390687,1759150246500,-552.24129499,0.00025943,2]
[388390688,1759150246510,-480.0,0.00025943,2]
[388390689,1759150246519,-480.0,0.00025943,2]
[388390690,1759150246528,-480.0,0.00025943,2]
[388390691,1759150246539,-480.0,0.00025943,2]
[388390692,1759150246549,-1432.11,0.00025943,2]
[388390693,1759150246559,-570.63,0.00025943,2]
[388390694,1759150246569,-480.0,0.00025943,2]
[388390695,1759150246580,-333.07984678,0.00025943,2]
[388390696,1759150246590,-839.63,0.00025943,2]
[388390697,1759150246599,-624.66,0.00025943,2]
[388390698,1759150246608,-551.72,0.00025943,2]
[388390699,1759150246618,-642.76,0.00025943,2]
[388390700,1759150246627,-635.29,0.00025943,2]
[388390701,1759150246637,-480.0,0.00025943,2]
[388390702,1759150246647,-480.0,0.00025943,2]
[388390703,1759150246656,-480.0,0.00025943,2]
[388390704,1759150246667,-534.81,0.00025943,2]
[388390705,1759150246677,-480.0,0.00025943,2]
[388390706,1759150246687,-480.0,0.00025943,2]
[388390707,1759150246697,-480.0,0.00025943,2]
[388390708,1759150246706,-480.0,0.00025943,2]
[388390709,1759150246715,-905.24,0.00025943,2]
[388390710,1759150246724,-344.53714551,0.00025943,2]
[388390711,1759150246733,-480.0,0.00025943,2]
[388390712,1759150246743,-480.0,0.00025943,2]
[388390713,1759150246752,-480.0,0.00025943,2]
[388390714,1759150246763,-480.0,0.00025943,2]
[388390715,1759150246775,-296.18186812,0.00025943,2]
[388390716,1759150246784,-480.0,0.00025943,2]
[388390717,1759150246794,-944.06,0.00025943,2]
[388390718,1759150246804,-471.49552937,0.00025943,2]
[388390719,1759150246814,-480.0,0.00025943,2]
[388390720,1759150246824,-480.0,0.00025943,2]
[388390721,1759150246834,-480.0,0.00025943,2]
[388390722,1759150246847,-480.0,0.00025943,2]
[388390723,1759150246856,-480.0,0.00025943,2]
[388390724,1759150246866,-480.0,0.00025943,2]
[388390725,1759150246876,-480.0,0.00025943,2]
[388390726,1759150246886,-718.28,0.00025943,2]
[388390727,1759150246896,-858.06,0.00025943,2]
[388390728,1759150246906,-480.0,0.00025943,2]
[388390729,1759150246916,-1123.64,0.00025943,2]
[388390730,1759150247084,-1123.64,0.00025943,2]
[388390731,1759150247106,-501.59,0.00025943,2]
[388390732,1759150247116,-806.63,0.00025943,2]
[388390733,1759150247125,-945.06,0.00025943,2]
[388390734,1759150247135,-480.0,0.00025943,2]
[388390735,1759150247144,-482.44,0.00025943,2]
[388390736,1759150247153,-866.15,0.00025943,2]
[388390737,1759150247162,-480.0,0.00025943,2]
[388390738,1759150247172,-480.0,0.00025943,2]
[388390739,1759150247181,-257.92269857,0.00025943,2]
[388390740,1759150247191,-582.75,0.00025943,2]
[388390741,1759150247200,-480.0,0.00025943,2]
[388390742,1759150247209,-480.0,0.00025943,2]
[388390743,1759150247220,-480.0,0.00025943,2]
[388390744,1759150247230,-480.0,0.00025943,2]
[388390745,1759150247239,-151.0,0.00025943,7]
[388390746,1759150247248,-506.42,0.00025943,2]
[388390747,1759150247258,-151.0,0.00025943,7]
[388390748,1759150247267,-579.57403187,0.00025943,2]
[388390749,1759150247277,-312.56603976,0.00025943,2]
[388390750,1759150479368,4980.721117,0.00023,2]
[388390751,1759150503138,5019.288883,0.00023432,2]
[388390752,1759150503163,4830.721117,0.00023432,2]
[388390753,1759150583508,160.0,0.00025201,2]
[388390754,1759150649491,5009.288883,0.00024866,2]
[388390755,1759150649513,656.5425074,0.00024866,2]
[388390756,1759150676407,5000.0,0.00025201,2]
[388390760,1759150684597,4343.4674926,0.00025201,2]
[388390761,1759150684619,656.5325074,0.00025201,2]
[388390763,1759150751672,1058.38345535,0.00025075,14]
[388390764,1759150803348,8285.09403725,0.00023432,2]
[388390765,1759150803372,1865.86869412,0.00023432,2]
[388390766,1759150814201,704.12491267,0.00025131,2]
[388390767,1759150843612,281.6355694,0.00024554,2]
[388390769,1759151036643,250.0,0.00024941,2]
[388390772,1759151127039,6898.38082381,0.0002487,7]
[388390773,1759151127064,960.61917619,0.0002487,7]
[388390774,1759151200507,393.88792193,0.00024423,2]
[388390775,1759151202629,1573.97613604,0.00024423,2]
[388390776,1759151210136,462.0,0.00025151,2]
[388390777,1759151283356,160.89,0.00018182,7]
[388390778,1759151283643,160.89,0.00018182,7]
[388390779,1759151283931,160.87,0.00018182,7]
[388390782,1759151370395,747.46644484,0.00024423,2]
[388390783,1759151372052,2986.87591358,0.00024423,2]
[388390784,1759151407738,462.0,0.00024945,2]
[388390785,1759151428019,168.0,0.00024869,2]
[388390823,1759151432226,-4037.02381795,0.00025204,12]
[388390824,1759151432235,-249.0,0.00025274,2]
[388390825,1759151432244,-249.0,0.00025281,2]
[388390827,1759151432253,-462.0,0.00025308,7]
[388390829,1759151432262,-168.0,0.00025393,2]
[388390831,1759151432271,-1165.65088213,0.0002545,2]
[388390833,1759151432280,-168.0,0.00025451,2]
[388390835,1759151432289,-17246.3252999,0.00025459,2]
[388390837,1759151432300,-27528.58621504,0.00025459,2]
[388390839,1759151432309,-1072.74585334,0.0002546,2]
[388390840,1759151432318,-1200.0,0.00025462,2]
[388390843,1759151432329,-268.09352713,0.00025463,2]
[388390845,1759151432343,-507.73545528,0.00025463,2]
[388390847,1759151432354,-296.91687093,0.00025463,2]
[388390849,1759151432363,-533.0621766,0.00025465,2]
[388390851,1759151432374,-539.68367674,0.00025465,2]
[388390853,1759151432383,-224.0,0.00025467,2]
[388390855,1759151432392,-300.0,0.00025467,2]
[388390857,1759151432401,-300.0,0.00025467,2]
[388390859,1759151432409,-300.0,0.00025467,2]
[388390861,1759151432418,-1072.74585334,0.00025468,2]
[388390863,1759151432427,-723.82,0.00025468,2]
[388390865,1759151432437,-480.0,0.00025468,2]
[388390866,1759151432446,-10690.66172303,0.00025469,2]
[388390868,1759151432455,-13939.08874646,0.00025469,2]
[388390931,1759151438348,-500.0,0.00025458,2]
[388390932,1759151438358,-279.53254942,0.00025458,2]
[388390933,1759151438368,-345.72181532,0.00025458,2]
[388390934,1759151438377,-447.90617399,0.00025458,2]
[388390935,1759151438387,-334.95073953,0.00025458,2]
[388390936,1759151438396,-480.0,0.00025468,2]
[388390937,1759151438406,-480.0,0.00025468,2]
[388390938,1759151438415,-480.0,0.00025468,2]
[388390939,1759151438425,-438.43447234,0.00025469,2]
[388390940,1759151438435,-1126.23,0.0002547,7]
[388390941,1759151438445,-1072.74585334,0.0002547,2]
[388390942,1759151438455,-480.0,0.00025543,2]
[388390943,1759151438464,-480.0,0.00025543,2]
[388390944,1759151438474,-480.88515607,0.00025543,2]
[388390945,1759151438483,-480.0,0.00025543,2]
[388390946,1759151438493,-480.54220582,0.00025543,2]
[388390947,1759151438502,-874.03,0.00025543,2]
[388390948,1759151438512,-480.0,0.00025543,2]
[388390949,1759151438521,-1381.37,0.00025543,2]
[388390950,1759151438531,-1165.38,0.00025543,2]
[388390951,1759151438545,-1933.86,0.00025543,2]
[388390952,1759151438555,-4117.91,0.00025543,2]
[388390953,1759151438566,-541.37,0.00025543,2]
[388390954,1759151438576,-7118.71,0.00025543,2]
[388390955,1759151438586,-480.0,0.00025543,2]
[388390956,1759151438596,-480.0,0.00025543,2]
[388390957,1759151438607,-852.71,0.00025543,2]
[388390958,1759151438617,-582.2274836,0.00025543,2]
[388390959,1759151438629,-133.8525164,0.00025543,2]
[388390960,1759151438640,-480.0,0.00025543,2]
[388390961,1759151438650,-2644.42,0.00025543,2]
[388390962,1759151438660,-4725.83909899,0.00025543,2]
[388390963,1759151438673,-2364.32090101,0.00025543,2]
[388390964,1759151438683,-1921.73,0.00025543,2]
[388390965,1759151438700,-794.27,0.00025543,2]
[388390966,1759151438712,-908.9,0.00025543,2]
[388390967,1759151438722,-809.99,0.00025543,2]
[388390968,1759151438733,-578.83,0.00025543,2]
[388390969,1759151438743,-480.0,0.00025543,2]
[388390970,1759151438753,-480.20872935,0.00025543,2]
[388390971,1759151438763,-1076.48,0.00025548,3]
[388390972,1759151438773,-538.24,0.00025548,3]
[388390973,1759151438783,-269.12,0.00025548,3]
[388390974,1759151438792,-807.38,0.00025548,3]
[388390975,1759151438802,-34874.4211474,0.00025549,2]
[388390976,1759151438813,-4513.79358287,0.00025549,2]
[388390977,1759151438823,-582.86,0.0002555,3]
[388390978,1759151438832,-291.43,0.0002555,3]
[388390979,1759151438842,-874.31,0.0002555,3]
[388390980,1759151438852,-1000.0,0.00025555,2]
[388390981,1759151438866,-1000.0,0.00025555,2]
[388390982,1759151438877,-151.0,0.00025555,2]
[388390983,1759151438888,-227.55472717,0.00025555,2]
[388390984,1759151438899,-151.0,0.00025555,2]
[388390985,1759151438909,-151.0,0.00025555,2]
[388390986,1759151438920,-151.0,0.00025555,2]
[388390987,1759151438930,-151.0,0.00025555,2]
[388390988,1759151438941,-151.0,0.00025555,2]
[388390989,1759151438951,-151.0,0.00025555,2]
[388390990,1759151438962,-250.0,0.00025555,2]
[388390991,1759151438971,-151.0,0.00025555,2]
[388390992,1759151438981,-250.0,0.00025555,2]
[388390993,1759151438991,-250.0,0.00025555,2]
[388390994,1759151439001,-151.0,0.00025555,2]
[388390995,1759151439011,-250.0,0.00025555,2]
[388390996,1759151439020,-151.43741575,0.00025555,2]
[388390997,1759151439030,-250.0,0.00025555,2]
[388390998,1759151439041,-250.0,0.00025555,2]
[388390999,1759151439051,-782.69,0.00025558,2]
[388391000,1759151439062,-481.46208121,0.00025558,2]
[388391001,1759151439072,-480.0,0.00025558,2]
[388391002,1759151439083,-480.0,0.00025558,2]
[388391003,1759151439093,-480.0,0.00025558,2]
[388391004,1759151439103,-504.51,0.00025558,2]
[388391005,1759151439112,-480.0,0.00025558,2]
[388391006,1759151439125,-480.0,0.00025558,2]
[388391007,1759151439137,-480.0,0.00025558,2]
[388391008,1759151439147,-529.73,0.00025558,2]
[388391009,1759151439157,-480.0,0.00025558,2]
[388391010,1759151439169,-1733.64,0.00025558,2]
[388391011,1759151439180,-4213.09,0.00025558,2]
[388391012,1759151439192,-480.0,0.00025558,2]
[388391013,1759151439205,-3372.92,0.00025558,2]
[388391014,1759151439215,-1502.49,0.00025558,2]
[388391015,1759151439226,-480.0,0.00025558,2]
[388391016,1759151439236,-566.89362169,0.00025558,2]
[388391017,1759151439246,-480.0,0.00025558,2]
[388391018,1759151439256,-480.4966852,0.00025558,2]
[388391019,1759151439268,-1733.19,0.00025558,2]
[388391020,1759151439278,-480.0,0.00025558,2]
[388391021,1759151439289,-1971.67,0.00025558,2]
[388391022,1759151439299,-536.53,0.00025558,2]
[388391023,1759151439309,-480.0,0.00025558,2]
[388391024,1759151439320,-480.0,0.00025558,2]
[388391025,1759151439331,-911.13,0.00025558,2]
[388391026,1759151439341,-1142.07,0.00025558,2]
[388391027,1759151439351,-3281.81,0.00025558,2]
[388391028,1759151439360,-2317.91,0.00025558,2]
[388391029,1759151439370,-819.96,0.00025558,2]
[388391030,1759151439380,-2895.75,0.00025558,2]
[388391031,1759151439390,-1165.8,0.00025558,2]
[388391032,1759151439399,-982.98,0.00025558,2]
[388391033,1759151439410,-480.0,0.00025558,2]
[388391034,1759151439420,-559.51,0.00025558,2]
[388391035,1759151439430,-159.99022613,0.00025558,2]
[388391036,1759151439439,-480.0,0.00025558,2]
[388391037,1759151439449,-480.0,0.00025558,2]
[388391038,1759151439458,-707.77,0.00025558,2]
[388391039,1759151439468,-2542.86,0.00025558,2]
[388391040,1759151439478,-2360.78,0.00025558,2]
[388391041,1759151439488,-3719.75,0.00025558,2]
[388391042,1759151439498,-952.67,0.00025558,2]
[388391043,1759151439508,-585.61,0.00025558,2]
[388391044,1759151439519,-500.0,0.00025558,2]
[388391045,1759151439529,-807.68,0.00025559,2]
[388391046,1759151439539,-480.0,0.00025559,2]
[388391047,1759151439548,-480.0,0.00025559,2]
[388391048,1759151439558,-480.0,0.00025559,2]
[388391049,1759151439568,-480.0,0.00025559,2]
[388391050,1759151439578,-511.41,0.00025559,2]
[388391051,1759151439588,-480.0,0.00025559,2]
[388391052,1759151439598,-1196.95,0.00025559,3]
[388391053,1759151439608,-598.47,0.00025559,3]
[388391054,1759151439618,-299.24,0.00025559,3]
[388391055,1759151439628,-897.74,0.00025559,3]
[388391056,1759151439638,-500.0,0.00025559,5]
[388391057,1759151439648,-139497.68459,0.00025559,2]
[388391058,1759151439659,-18055.1743315,0.00025559,2]
[388391059,1759151439668,-104623.263442,0.0002556,2]
[388391060,1759151439679,-36110.348663,0.0002556,2]
[388391061,1759151439690,-4513.79358287,0.00025563,2]
[388391062,1759151439700,-177.00118484,0.00025568,2]
[388391063,1759151439710,-481.38661276,0.00025569,2]
[388391064,1759151439720,-480.0,0.00025569,2]
[388391065,1759151439730,-495.43616252,0.00025569,2]
[388391066,1759151439739,-480.0,0.00025569,2]
[388391067,1759151439749,-480.0,0.00025569,2]
[388391068,1759151439759,-518.21598988,0.00025569,2]
[388391071,1759151439769,-480.0,0.00025569,2]
[388391073,1759151439780,-249.87734447,0.00025569,2]
[388391074,1759151439789,-568.25,0.00025569,2]
[388391075,1759151439799,-480.0,0.00025569,2]
[388391076,1759151439809,-480.0,0.00025569,2]
[388391077,1759151439819,-480.0,0.00025569,2]
[388391079,1759151439829,-480.0,0.00025569,2]
[388391081,1759151439838,-480.0,0.00025569,2]
[388391082,1759151439849,-480.0,0.00025569,2]
[388391083,1759151439859,-493.62576537,0.00025569,2]
[388391084,1759151439869,-480.0,0.00025569,2]
[388391085,1759151439879,-855.96,0.00025569,2]
[388391086,1759151439889,-480.0,0.00025569,2]
[388391087,1759151439899,-480.0,0.00025569,2]
[388391088,1759151439909,-480.0,0.00025569,2]
[388391089,1759151439920,-1375.03,0.00025569,2]
[388391090,1759151439930,-480.0,0.00025569,2]
[388391092,1759151439938,-832.79,0.00025569,2]
[388391093,1759151439946,-480.0,0.00025569,2]
[388391094,1759151439954,-480.0,0.00025569,2]
[388391095,1759151439962,-480.0,0.00025569,2]
[388391097,1759151439971,-480.0,0.00025569,2]
[388391098,1759151439980,-669.84,0.00025569,2]
[388391099,1759151439990,-669.84,0.00025569,2]
[388391101,1759151440000,-480.0,0.00025569,2]
[388391102,1759151440010,-572.6,0.00025569,2]
[388391103,1759151440020,-480.0,0.00025569,2]
[388391104,1759151440030,-480.0,0.00025569,2]
[388391105,1759151440040,-1540.29,0.00025569,2]
[388391106,1759151440050,-769.66,0.00025569,2]
[388391108,1759151440060,-504.06509231,0.00025569,2]
[388391111,1759151440080,-523.28,0.00025569,2]
[388391113,1759151440092,-582.35,0.00025569,2]
[388391115,1759151440103,-480.0,0.00025569,2]
[388391117,1759151440113,-480.0,0.00025569,2]
[388391119,1759151440124,-583.85092848,0.00025569,2]
[388391121,1759151440137,-480.0,0.00025569,2]
[388391123,1759151440148,-490.24,0.00025569,2]
[388391125,1759151440158,-480.0,0.00025569,2]
[388391126,1759151440168,-480.0,0.00025569,2]
[388391128,1759151440178,-480.0,0.00025569,2]
[388391130,1759151440189,-155.95996062,0.00025569,2]
[388391132,1759151440199,-480.0,0.00025569,2]
[388391134,1759151440209,-483.4339518,0.00025569,2]
[388391136,1759151440219,-829.8,0.00025569,2]
[388391138,1759151440229,-865.38,0.00025569,2]
[388391140,1759151440238,-480.0,0.00025569,2]
[388391142,1759151440248,-927.52,0.00025569,2]
[388391144,1759151440258,-787.63,0.00025569,2]
[388391145,1759151440268,-480.0,0.00025569,2]